Workbook

Sheet Notes
A1: Supplemental Assignment Notes
A2: IF Function | C2: https://www.youtube.com/watch?v=KkTaQ5OjAGc
C3: Use this function when the result for a cell is one of two
C4: possible values:
C5: =IF(condition,cell value if condition is true,cell value if condition is false)
C6: Examples:
C7: 1 | D7: =IF(C7<>1,"Error!",SUM(C7:C10)) -> 10 | E7: =getformula(D7) -> <-- =IF(C7<>1,"Error!",SUM(C7:C10))
C8: 2 | D8: =IF(AND(C7=1,C8=2),"Both Correct!","Both NOT correct") -> Both Correct! | F8: =getformula(D8) -> <-- =IF(AND(C7=1,C8=2),"Both Correct!","Both NOT correct")
C9: 3 | D9: =IF(OR(C7=1,C8=2),"1 or 2 Correct!","Both NOT correct") -> 1 or 2 Correct! | F9: =getformula(D9) -> <-- =IF(OR(C7=1,C8=2),"1 or 2 Correct!","Both NOT correct")
C10: 4 | D10: =IF(C10^2/(1+C10/100)>=1,ROUND(1+C10/100,2),999) -> 1.04 | E10: =getformula(D10) -> <-- =IF(C10^2/(1+C10/100)>=1,ROUND(1+C10/100,2),999)
C11: Note that each of the 3 arguments in the IF function may be elaborate
C12: "formulas" with other functions and cell references. It is not unusual to see an IF
C13: function as an argument to an IF function (nested IF).
A14: AND Function
B15: Checks if ALL arguments are TRUE.
B16: Returns TRUE if they are and FALSE if not.
A17: OR Function
B18: Checks if ANY arguments are TRUE.
B19: Returns TRUE if at least one is TRUE and FALSE if not.
B21: Order (low to high) in IF test:
B22: empty cell -->
B23: 0 --> | C23: 0 | D23: =C23=C22 -> TRUE | E23: =getformula(D23) -> <-- =C23=C22 | F23: <-- Empty cell and zero considered Equal!
B24: 1 --> | C24: 1 | D24: =C24>C23 -> TRUE | E24: =getformula(D24) -> <-- =C24>C23
B25: 2 --> | C25: 2 | D25: =C25>C24 -> TRUE | E25: <-- =C25>C24
B26: 3 --> | C26: 3 | D26: TRUE | E26: <-- =C26>C25
B27: 99 --> | C27: 99 | D27: TRUE | E27: <-- =C27>C26
B28: 2 double " --> | C28: ="" ->  | D28: TRUE | E28: <-- =C28>C27
B29: space --> | D29: TRUE | E29: <-- =C29>C28
B30: ! --> | C30: ! | D30: TRUE | E30: <-- =C30>C29
B31: # --> | C31: # | D31: TRUE | E31: <-- =C31>C30
B32: @ --> | C32: @ | D32: TRUE | E32: <-- =C32>C31
B33: a --> | C33: a | D33: TRUE | E33: <-- =C33>C32
B34: z --> | C34: z | D34: TRUE | E34: <-- =C34>C33
A35: Don’t use a math operator (+-*/^) on a text cell! | G35: But this works:
B36: Text | C36: 5 | D36: =B36*C36 ->  | E36: =getformula(D36) -> <-- =B36*C36 | G36: Number as TEXT
B37: Over | C37: 4 | D37: =B37+1 ->  | E37: =getformula(D37) -> <-- =B37+1 | G37: ="222" -> 222 | H37: 4 | I37: =G37+H37 -> 226 | J37: =getformula(I37) -> <-- =G37+H37
B38: Under | C38: 3 | D38: =B38/C38 ->  | E38: <-- =B38/C38 | G38: ="333" -> 333 | H38: 3 | I38: =G38/H38 -> 111 | J38: <-- =G38/H38
A39: Use apersand (&) to join (concatenate) pieces of text!
B40: day | C40: 2 | D40: =B40&C40 -> day2 | E40: =getformula(D40) -> <-- =B40&C40
B41: Jim | C41: Bob | D41: =B41&C41 -> JimBob | E41: =getformula(D41) -> <-- =B41&C41
B42: Jim | C42: Bob | D42: =B42&" "&C42 -> Jim Bob | E42: =getformula(D42) -> <-- =B42&" "&C42
A43: Rounding Functions | G43: FIXED Function: Converts value to text
B44: 123.456 | C44: =ROUND(B44,0) -> 123 | D44: =getformula(C44) -> <-- =ROUND(B44,0) | G44: =FIXED(C44,1) -> 123.0 | H44: =getformula(G44) -> <-- =FIXED(C44,1)
B45: 123.456 | C45: =ROUND(B45,1) -> 123.5 | D45: =getformula(C45) -> <-- =ROUND(B45,1) | G45: =FIXED(C45*100,0) -> 12,350 | H45: <-- =FIXED(C45*100,0)
B46: 123.456 | C46: =ROUND(B46,-2) -> 100 | D46: <-- =ROUND(B46,-2) | G46: ="Number = "&FIXED(C46*100,1) -> Number = 10,000.0 | H46: <-- ="Number = "&FIXED(C46*100,1)
B47: 123.456 | C47: =ROUNDUP(B47,1) -> 123.5 | D47: <-- =ROUNDUP(B47,1) | G47: ="X = "&FIXED(C47*100,2)&"%" -> X = 12,350.00% | H47: <-- ="X = "&FIXED(C47*100,2)&"%"
B48: 123.456 | C48: =ROUNDUP(B48,2) -> 123.46 | D48: <-- =ROUNDUP(B48,2) | G48: ="Max = "&FIXED(SUM(C44:C49)-33,2)&" Units" -> Max = 683.91 Units | H48: <-- ="Max = "&FIXED(SUM(C44:C49)-33,2)&" Units"
B49: 123.456 | C49: =ROUNDDOWN(B49,2) -> 123.45 | D49: <-- =ROUNDDOWN(B49,2)
B50: 123.456 | C50: =ROUNDDOWN(B50,-2) -> 100 | D50: <-- =ROUNDDOWN(B50,-2)
B51: =SUM(B44:B50) -> 864.192 | C51: =SUM(C44:C50) -> 816.91 | D51: ="<--Totals "&IF(C51<>B51,"Differ!","Same!") -> <--Totals Differ! | F51: =getformula(D51) -> <-- ="<--Totals "&IF(C51<>B51,"Differ!","Same!")
A53: Data Validation
B54: Use Data/Data Validation/Data Validation to constrain input cell values | J54: Data Validation List:
C55: Settings: Specify what may be entered into this cell | J55: Robert
C56: Input Message: Show this message when cell is selected | J56: Elaine
C57: Error Alert: Show this message when value entered is incorrect | J57: Susan
B58: ="See Cell "&CELL("address",I54)&" Above" -> See Cell $I$54 Above | E58: =getformula(B58) -> <-- ="See Cell "&CELL("address",I54)&" Above" | J58: Thomas
A59: Conditional Formatting: Formula Rule | J59: Amelia
B60: Use this command (Home/Conditional Formatting) to set an
B61: alternate format based on conditions you specify.
B62: 1 | C62: Start by selecting the cell or cells for which will display one
C63: of two formats based on a formula that is true or false.
B64: 2 | C64: Select: Home/Conditional Formatting/New Rule/Use a formula…
B65: 3 | C65: Enter the appropriate formula as a condition
B66: 4 | C66: Specify the new format to be applied if the formula result is true
B67: Examples:
B68: 1 | C68: 12345 | D68: ="<-- If "&CELL("address",B68)&" is negative apply a red fill." -> <-- If $B$68 is negative apply a red fill.
B69: -1 | C69: 12345 | D69: ="<-- If "&CELL("address",B69)&" is negative apply a red fill." -> <-- If $B$69 is negative apply a red fill.
B70: Be sure to use "$" correctly in conditional format rule formulas
B71: if you wish to paste the cell format to other cells.
A72: Protecting a Worksheet in a Workbook
B73: By default all cells on a sheet are "Locked". You can see this by
B74: selecting a cell range, right click, select "Format Cells" then the
B75: Protection tab. Checking the locked box for a cell willhave no impact
B76: until the worksheet is protected using the Review tab on the ribbon.
B77: Example:
B78: 1 | C78: The cells to the left are the only cell on this sheet which
B79: 2 | C79: were formatted with the "Locked" box unchecked using the
B80: 3 | C80: protection tab. To invoke the protection so that the only cells
B81: 4 | C81: able to be changed are the ones to the left, you must select
B82: 5 | C82: Review/Protect Sheet. Try it! Then undo the protection using
B83: 6 | C83: the Review tab.
B84: Remember, protecting the worksheet is a two step process. First, use
B85: format protection to lock or unlock cells. Second, use the Review tab
B86: on the ribbon to turn that protection on or off.
A88: Other Basic Excel Functions
B89: Apples: | C89: =SUM(J90:J91,J94) -> 280 | D89: =getformula(C89) -> <-- =SUM(J90:J91,J94) | H89: Fruit | I89: Year | J89: Units
B90: All but Pears | C90: =SUM(J90:J96) -> 1340 | D90: =getformula(C90) -> <-- =SUM(J90:J96) | H90: Apples | I90: 2018 | J90: 50
B91: All but Pears | C91: =SUMIF(J90:J97,"<400") -> 1340 | D91: =getformula(C91) -> <-- =SUMIF(J90:J97,"<400") | H91: Apples | I91: 2019 | J91: 100
B92: After 2019: | C92: =SUMIF(J90:J97,"<>50") -> 1690 | D92: =getformula(C92) -> <-- =SUMIF(J90:J97,"<>50") | H92: Oranges | I92: 2019 | J92: 200
B93: Pears: | C93: =SUMIFS(J90:J97,H90:H97,"PEARS") -> 400 | D93: =getformula(C93) -> <-- =SUMIFS(J90:J97,H90:H97,"PEARS") | H93: Peaches | I93: 2019 | J93: 300
B94: Apples 2018 & 2019 | C94: =SUMIFS(J90:J97,H90:H97,"Apples",I90:I97,"<2020") -> 150 | D94: =getformula(C94) -> <-- =SUMIFS(J90:J97,H90:H97,"Apples",I90:I97,"<2020") | H94: Apples | I94: 2020 | J94: 130
B95: Apples 2019: | C95: =SUMIFS(J90:J97,H90:H97,"Apples",I90:I97,2019) -> 100 | D95: =getformula(C95) -> <-- =SUMIFS(J90:J97,H90:H97,"Apples",I90:I97,2019) | H95: Oranges | I95: 2020 | J95: 230
B96: Nonsence!: | C96: =SUMPRODUCT(I90:I97,J90:J97) -> 3514100 | D96: =getformula(C96) -> <-- =SUMPRODUCT(I90:I97,J90:J97) | H96: Peaches | I96: 2020 | J96: 330
B97: =1/0 ->  | C97: =IFERROR(B97,"Error!") -> Error! | D97: =getformula(C97) -> <-- =IFERROR(B97,"Error!") | H97: Pears | I97: 2020 | J97: 400
B98: Average all: | C98: =AVERAGE(J90:J97) -> 217.5 | D98: =getformula(C98) -> <-- =AVERAGE(J90:J97)
B99: 2019 Average: | C99: =AVERAGEIF(I90:I97,"=2019",J90:J97) -> 200 | D99: =getformula(C99) -> <-- =AVERAGEIF(I90:I97,"=2019",J90:J97)
B100: Samallest | C100: =MIN(J90:J97) -> 50 | D100: =getformula(C100) -> <-- =MIN(J90:J97)
B101: Largest | C101: =MAX(J90:J97) -> 400 | D101: =getformula(C101) -> <-- =MAX(J90:J97)
B102: Number | C102: =COUNT(J90:J97) -> 8 | D102: =getformula(C102) -> <-- =COUNT(J90:J97)
B103: Row number | C103: =ROW(G88) -> 88 | D103: =getformula(C103) -> <-- =ROW(G88)
